bitfinex-derivatives/quotes_BTCF0:USTF0_20241208
["timestamp","ask_amount","ask_price","bid_price","bid_amount"]
[1733676939150,0.045002,99939.0,99938.0,0.00150076]
[1733676939346,0.045002,99939.0,99938.0,1.50150076]
[1733676940654,0.21928367,99949.0,99938.0,1.50150076]
[1733676940847,0.21928367,99949.0,99944.0,0.045]
[1733676940848,0.045,99945.0,99944.0,0.045]
[1733676941047,0.00989866,99949.0,99938.0,1.50210076]
[1733676941048,0.044998,99949.0,99938.0,1.50210076]
[1733676941253,0.17936412,99944.0,99942.0,0.045001]
[1733676941564,0.17936412,99943.0,99942.0,0.045001]
[1733676942052,0.045,99944.0,99942.0,0.045001]
[1733676942660,0.045,99944.0,99943.0,0.045]
[1733676944953,0.48037475,99955.0,99942.0,0.1798062]
[1733676945257,0.044995,99955.0,99954.0,0.044995]
[1733676945459,0.044995,99955.0,99954.0,0.05312481]
[1733676946762,0.044995,99955.0,99954.0,1.55312481]
[1733676947757,0.044995,99955.0,99954.0,1.55312434]
[1733676949156,0.044995,99955.0,99954.0,1.73275985]
[1733676949352,0.044995,99955.0,99954.0,1.55312434]
[1733676951057,0.044995,99955.0,99954.0,1.55312442]
[1733676952567,0.044995,99955.0,99954.0,1.5481217]
[1733676954867,0.044995,99955.0,99954.0,1.55312416]
[1733676956368,0.044995,99955.0,99954.0,1.5481217]
[1733676956860,0.044995,99955.0,99954.0,1.55312422]
[1733676957768,0.044995,99955.0,99954.0,1.5481217]
[1733676958466,0.179471,99957.0,99955.0,0.044995]
[1733676958670,0.179471,99958.0,99957.0,0.044994]
[1733676958973,0.2094901,99970.0,99958.0,0.044994]
[1733676958974,0.179471,99959.0,99958.0,0.044994]
[1733676959271,0.179471,99959.0,99958.0,0.0481207]
[1733676959470,0.04862852,99959.0,99958.0,0.05312307]
[1733676959679,0.14957364,99960.0,99958.0,0.10817459]
[1733676959967,0.14957364,99961.0,99960.0,0.044993]
[1733676960171,0.14957364,99962.0,99961.0,0.044992]
[1733676960359,0.14957364,99962.0,99961.0,0.08332107]
[1733676960559,0.14957364,99962.0,99961.0,0.1088187]
[1733676960770,0.00010509,99970.0,99961.0,0.0638267]
[1733676960771,0.14957364,99963.0,99961.0,0.0638267]
[1733676960968,0.14957364,99964.0,99962.0,0.0031267]
[1733676961168,0.14957364,99964.0,99963.0,0.0481177]
[1733676961474,0.11970851,99964.0,99963.0,0.14815621]
[1733676961665,0.11970851,99969.0,99965.0,0.044991]
[1733676961862,0.00010509,99970.0,99969.0,0.044989]
[1733676962167,0.00010509,99970.0,99969.0,1.9089157]
[1733676962470,0.00010509,99970.0,99969.0,2.00895221]
[1733676963264,0.00010509,99970.0,99969.0,2.00582551]
[1733676963470,0.00010509,99970.0,99969.0,2.00895139]
[1733676964073,0.00010509,99970.0,99969.0,2.00582551]
[1733676964270,0.00010509,99970.0,99969.0,2.00895141]
[1733676964871,0.044983,99982.0,99969.0,2.18545992]
[1733676965071,0.044983,99982.0,99981.0,0.405783]
[1733676966271,0.00989858,99985.0,99981.0,0.405783]
[1733676966272,0.05488058,99985.0,99984.0,0.044982]
[1733676966467,0.044977,99995.0,99984.0,0.044982]
[1733676966674,0.22030356,100000.0,99998.0,0.044976]
[1733676966868,0.22030356,100000.0,99989.0,0.3608]
[1733676966869,0.21978355,100000.0,99999.0,0.044975]
[1733676967068,0.22996898,100000.0,99999.0,0.044975]
[1733676967677,0.11026047,100000.0,99999.0,0.044975]
[1733676967979,0.11026047,100000.0,99999.0,0.405775]
[1733676968568,0.15523547,100000.0,99999.0,0.3608]
[1733676968970,0.27494398,100000.0,99999.0,0.3698]
[1733676969476,0.22996898,100000.0,99999.0,0.423775]
[1733676969666,0.11026047,100000.0,99999.0,0.423775]
[1733676970474,0.11026047,100000.0,99999.0,0.062975]
[1733676970676,0.10007504,100000.0,99999.0,0.062975]
[1733676971576,0.14505004,100000.0,99999.0,0.018]
[1733676971977,0.32452104,100000.0,99999.0,0.018]
[1733676974080,0.14505004,100000.0,99999.0,0.018]
[1733676974576,0.14505004,100000.0,99999.0,0.003]
[1733676974883,0.14505004,100000.0,99999.0,0.004]
[1733676975577,0.35443505,100000.0,99999.0,0.004]
[1733676975779,0.14505004,100000.0,99999.0,0.004]
[1733676975979,0.14505004,100000.0,99999.0,0.002]
[1733676976489,0.35443505,100000.0,99999.0,0.002]
[1733676976679,0.14505004,100000.0,99999.0,0.002]
[1733676976980,0.14505004,100000.0,99999.0,0.001]
[1733676977879,0.24606724,100000.0,99999.0,0.001]
[1733676978077,0.45545225,100000.0,99986.0,0.01]
[1733676978387,0.17907301,99992.0,99983.0,0.3608]
[1733676978584,0.044982,99984.0,99983.0,0.3608]
[1733676984381,0.044982,99984.0,99983.0,0.36392588]
[1733676985684,0.044982,99984.0,99983.0,0.00312588]
[1733676985890,0.044982,99983.0,99982.0,1.5006]
[1733676986087,0.044982,99983.0,99982.0,1.50312597]
[1733676986386,0.044982,99983.0,99982.0,1.50312601]
[1733676986685,0.044982,99983.0,99982.0,1.5]
[1733676987388,0.044982,99983.0,99982.0,1.50312604]
[1733676987577,0.044982,99983.0,99982.0,1.5]
[1733676987783,0.405782,99983.0,99982.0,1.5]
[1733676987985,0.50538255,99983.0,99982.0,1.5]
[1733676989590,0.50538255,99983.0,99982.0,1.50312616]
[1733676989887,0.50538255,99983.0,99982.0,1.5]
[1733676990284,0.62116342,99983.0,99982.0,1.5]
[1733676992287,0.71494216,99983.0,99982.0,1.5]
[1733676992480,0.71470899,99983.0,99982.0,1.5]
[1733676992678,0.50514938,99983.0,99982.0,1.5]
[1733676993088,0.71467516,99983.0,99982.0,1.5]
[1733676993294,0.62029644,99983.0,99982.0,1.5]
[1733676993885,0.044987,99973.0,99972.0,0.01]
[1733676994085,0.044987,99972.0,99963.0,0.00150032]
[1733676994295,0.044991,99964.0,99963.0,0.00150032]
[1733676994787,0.044991,99964.0,99963.0,1.50150032]
[1733676995181,0.044991,99964.0,99963.0,1.50750032]
[1733676997588,0.044991,99964.0,99963.0,1.51050032]
[1733676997799,0.044991,99964.0,99963.0,1.51362684]
[1733676999383,0.044991,99964.0,99963.0,1.51050032]
[1733676999985,0.044991,99964.0,99963.0,1.51362685]
[1733677000383,0.044991,99964.0,99963.0,0.01362685]
[1733677000991,0.044991,99964.0,99963.0,0.01212653]
[1733677001791,0.044991,99964.0,99957.0,0.01]
[1733677001792,0.044997,99961.0,99957.0,0.01]
[1733677001996,0.045,99954.0,99952.0,0.01]
[1733677002194,0.045,99954.0,99932.0,0.00150104]
[1733677002195,0.045003,99947.0,99946.0,0.01]
[1733677002397,0.045004,99944.0,99943.0,1.5]
[1733677002697,0.405804,99944.0,99943.0,1.5]
[1733677002885,0.045006,99941.0,99940.0,7.181e-05]
[1733677003290,0.045006,99941.0,99940.0,1.50007181]
[1733677004697,0.045006,99941.0,99940.0,1.50307181]
[1733677004898,0.045006,99941.0,99940.0,1.51007181]
[1733677008204,0.405806,99941.0,99940.0,1.51007181]
[1733677008391,0.7257376,99941.0,99932.0,0.00150104]
[1733677008593,0.405809,99933.0,99932.0,0.00150104]
[1733677009902,0.415809,99933.0,99922.0,0.01]
[1733677010104,0.415809,99933.0,99920.0,7.082e-05]
[1733677010105,0.045015,99921.0,99920.0,7.082e-05]
[1733677010499,0.045015,99921.0,99920.0,1.50007082]
[1733677011495,0.045015,99921.0,99920.0,1.50207082]
[1733677011899,0.045015,99921.0,99920.0,1.50307082]
[1733677017912,0.05519245,99921.0,99920.0,1.50307082]
[1733677019507,0.07488569,99921.0,99920.0,1.50307082]
[1733677020820,0.3608,99928.0,99920.0,1.50307082]
[1733677020821,0.3608,99928.0,99927.0,0.045012]
[1733677021015,0.045014,99923.0,99922.0,0.045014]
[1733677021209,0.045014,99923.0,99922.0,0.04814176]
[1733677021409,0.045014,99923.0,99922.0,1.54814176]
[1733677022301,0.045014,99923.0,99922.0,1.50312776]
[1733677023112,0.045014,99923.0,99922.0,1.50512776]
[1733677023325,0.045014,99923.0,99922.0,1.50612776]
[1733677025426,0.045014,99923.0,99922.0,1.5061279]
[1733677028421,0.045014,99923.0,99922.0,1.503]
[1733677030012,0.1641612,99923.0,99922.0,1.503]
[1733677030318,0.16469048,99923.0,99922.0,1.503]
[1733677030523,0.045014,99923.0,99922.0,1.503]
[1733677031623,0.045014,99923.0,99922.0,1.50612806]
[1733677033522,0.3608,99928.0,99927.0,0.045012]
[1733677033821,0.3608,99928.0,99927.0,0.05314432]
[1733677034720,0.406812,99928.0,99927.0,0.05314432]
[1733677037522,0.046012,99928.0,99927.0,0.05314432]
[1733677039119,0.046012,99928.0,99927.0,0.045012]
[1733677039323,0.046012,99928.0,99927.0,0.05001623]
[1733677039518,0.046012,99928.0,99927.0,0.05314387]
[1733677046135,0.046012,99928.0,99927.0,0.05314376]
[1733677047122,0.16576435,99928.0,99927.0,0.05314376]
[1733677047729,0.06576435,99928.0,99927.0,0.05314376]
[1733677048035,0.11077635,99928.0,99927.0,0.05314376]
[1733677048932,0.045012,99928.0,99927.0,0.05314376]
[1733677050433,0.045012,99928.0,99927.0,0.0481396]
[1733677052835,0.045012,99928.0,99927.0,0.0031276]
[1733677053027,0.045012,99928.0,99922.0,1.68049236]
[1733677053028,0.045014,99923.0,99922.0,0.00064]
[1733677053234,0.045015,99921.0,99920.0,7.082e-05]
[1733677053940,0.55558933,99921.0,99920.0,0.00319877]
[1733677054234,0.405815,99921.0,99920.0,1.50007082]
[1733677055239,0.405815,99921.0,99920.0,1.50107082]
[1733677056133,0.405815,99921.0,99920.0,1.50307082]
[1733677056742,0.41604522,99921.0,99920.0,1.50307082]
[1733677059650,0.41604522,99921.0,99920.0,1.50619909]
[1733677061948,0.41604522,99921.0,99920.0,1.50307082]
[1733677062128,0.41604522,99921.0,99920.0,1.50619901]
[1733677063336,0.41604522,99921.0,99920.0,1.50307082]
[1733677063535,0.41604522,99921.0,99920.0,1.50619901]
[1733677064344,0.41604522,99921.0,99920.0,1.50307082]
[1733677065342,0.41604522,99921.0,99920.0,1.54808582]
[1733677066242,0.41604522,99921.0,99920.0,1.55121384]
[1733677070142,0.41604522,99921.0,99920.0,1.55121376]
[1733677074740,0.41604522,99921.0,99920.0,1.54808582]
[1733677075146,0.41604522,99921.0,99920.0,1.55121376]
[1733677075346,0.05524522,99921.0,99920.0,1.73094232]
[1733677075547,0.05524522,99921.0,99920.0,1.73594702]
[1733677076251,0.05524522,99921.0,99920.0,1.55121376]
[1733677076745,0.05524522,99921.0,99920.0,1.73594702]
[1733677077049,0.045015,99921.0,99920.0,1.73594702]
[1733677077241,0.045015,99921.0,99920.0,1.55621846]
[1733677078343,0.045015,99921.0,99920.0,1.54808582]
[1733677078545,0.045015,99921.0,99920.0,1.55621846]
[1733677080446,0.045015,99921.0,99920.0,1.55121376]
[1733677084049,0.045015,99921.0,99920.0,1.54808582]
[1733677084457,0.045015,99921.0,99920.0,1.55121376]
[1733677086955,0.3608,99926.0,99920.0,1.55121376]
[1733677087156,0.405813,99926.0,99925.0,0.045013]
[1733677087351,0.405813,99926.0,99925.0,0.04814094]
[1733677088370,0.405813,99926.0,99925.0,0.22813981]
[1733677088551,0.405813,99926.0,99925.0,0.22813894]
[1733677089250,0.405813,99926.0,99925.0,0.05314559]
[1733677090944,0.405813,99926.0,99925.0,0.23317742]
[1733677091352,0.405813,99926.0,99925.0,0.00312794]
[1733677092049,0.405813,99926.0,99925.0,0.18317443]
[1733677092256,0.405813,99926.0,99925.0,0.00312794]
[1733677092456,0.405813,99926.0,99925.0,0.00813258]
[1733677092858,0.405813,99926.0,99925.0,0.00813254]
[1733677093957,0.045013,99926.0,99925.0,0.00813254]
[1733677094358,0.19465088,99926.0,99925.0,0.00813254]
[1733677095154,0.045013,99926.0,99925.0,0.00312794]
[1733677095651,0.045013,99926.0,99925.0,0.18327868]
[1733677095856,0.045013,99926.0,99925.0,0.00312794]
[1733677096859,0.085013,99926.0,99925.0,0.00312794]
[1733677097360,0.045015,99921.0,99920.0,1.68086156]
[1733677097559,0.405815,99921.0,99920.0,1.6833497]
[1733677097961,0.405815,99921.0,99920.0,1.68334972]
[1733677098161,0.405815,99921.0,99920.0,1.50319898]
[1733677099161,0.405815,99921.0,99920.0,1.50419898]
[1733677099355,0.405815,99921.0,99920.0,1.68428945]
[1733677099557,0.405815,99921.0,99920.0,1.50419898]
[1733677099761,0.405815,99921.0,99920.0,1.68428945]
[1733677099959,0.405815,99921.0,99920.0,1.68628945]
[1733677100259,0.55550853,99921.0,99920.0,1.50619898]
[1733677100563,0.405815,99921.0,99920.0,1.50619898]
[1733677101163,0.437515,99921.0,99920.0,1.50619898]
[1733677102665,0.61719798,99921.0,99920.0,1.50619898]
[1733677103653,0.437515,99921.0,99920.0,1.50307082]
[1733677104965,0.437515,99921.0,99920.0,0.00307082]
[1733677105966,0.61703836,99921.0,99920.0,0.00307082]
[1733677106261,0.437515,99921.0,99920.0,0.00307082]
[1733677110563,0.076715,99921.0,99920.0,0.00307082]
[1733677110762,0.437515,99921.0,99920.0,0.00307082]
[1733677111663,0.437515,99921.0,99920.0,1.50307082]
[1733677113364,0.076715,99921.0,99920.0,1.50307082]
[1733677113564,0.437515,99921.0,99920.0,1.50307082]
[1733677115476,0.53004852,99921.0,99920.0,1.50307082]
[1733677116168,0.54004852,99921.0,99920.0,1.50307082]
[1733677116769,0.54008267,99921.0,99920.0,0.00307082]
[1733677116977,0.045018,99913.0,99912.0,0.01]
[1733677117273,0.045022,99905.0,99904.0,0.01]
[1733677117462,0.045023,99902.0,99901.0,1.5006]
[1733677117662,0.045023,99902.0,99901.0,1.5]
[1733677118060,0.22438298,99902.0,99901.0,1.5]
[1733677119373,0.045023,99902.0,99901.0,1.5]
[1733677119868,0.22438298,99902.0,99901.0,1.5]
[1733677120075,0.22538298,99902.0,99901.0,1.509]
[1733677120474,0.22538298,99902.0,99901.0,1.5]
[1733677120772,0.22538298,99902.0,99901.0,1.51]
[1733677121476,0.046023,99902.0,99901.0,1.51]
[1733677122076,0.046023,99902.0,99901.0,1.509]
[1733677122275,0.05585159,99902.0,99901.0,1.509]
[1733677124575,0.41965159,99902.0,99901.0,1.506]
[1733677125075,0.41965159,99902.0,99901.0,1.5]
[1733677125267,0.42565159,99902.0,99901.0,1.501]
[1733677128578,0.06485159,99902.0,99901.0,1.501]
[1733677128881,0.42565159,99902.0,99901.0,1.501]
[1733677130683,0.06485159,99902.0,99901.0,1.501]
[1733677130876,0.42565159,99902.0,99901.0,1.501]
[1733677133885,0.42565159,99902.0,99901.0,1.50412881]
[1733677135978,0.42565159,99902.0,99901.0,1.53512881]
[1733677136482,0.42565159,99902.0,99901.0,1.58015281]
[1733677136483,0.01,99902.0,99901.0,1.58015281]
[1733677136682,0.01,99902.0,99901.0,1.82479663]
[1733677136886,0.01,99902.0,99901.0,1.58515854]
[1733677137291,0.045023,99904.0,99903.0,0.045023]
[1733677137490,0.045023,99904.0,99903.0,0.05315754]
[1733677138288,0.045023,99904.0,99903.0,0.05315645]
[1733677140184,0.048023,99904.0,99903.0,0.05315645]
[1733677140983,0.048023,99904.0,99903.0,0.04815125]
[1733677143091,0.048023,99904.0,99903.0,0.00312825]
[1733677143692,0.048023,99904.0,99901.0,0.031]
[1733677143693,0.045023,99902.0,99901.0,0.031]
[1733677144286,0.045023,99902.0,99901.0,0.03412827]
[1733677145388,0.045023,99902.0,99901.0,0.07915227]
[1733677145791,0.045023,99902.0,99901.0,0.31886043]
[1733677146486,0.046023,99902.0,99901.0,0.31886043]
[1733677146682,0.046023,99902.0,99901.0,0.07915227]
[1733677147991,0.046023,99902.0,99901.0,0.08415751]
[1733677148893,0.046023,99902.0,99901.0,0.08415752]
[1733677149481,0.046023,99902.0,99901.0,0.32382099]
[1733677152495,0.046023,99902.0,99901.0,0.08415752]
[1733677152694,0.046023,99902.0,99901.0,0.05315752]
[1733677154195,0.046023,99902.0,99901.0,0.00813352]
[1733677155287,0.406823,99902.0,99901.0,0.00312828]
[1733677155487,0.406823,99902.0,99900.0,0.00012296]
[1733677155488,0.3618,99902.0,99900.0,0.00012296]
[1733677155682,0.140324,99901.0,99900.0,0.00012296]
[1733677156894,0.141324,99901.0,99900.0,0.00012296]
[1733677157884,0.145324,99901.0,99900.0,0.00012296]
[1733677158289,0.140324,99901.0,99900.0,0.00012296]
[1733677158495,0.147324,99901.0,99900.0,0.00012296]
[1733677159199,0.148324,99901.0,99900.0,0.00012296]
[1733677159785,0.143324,99901.0,99900.0,0.00012296]
[1733677160099,0.148324,99901.0,99900.0,0.00012296]
[1733677167799,0.509124,99901.0,99900.0,0.00012296]
[1733677168707,0.148324,99901.0,99900.0,0.00012296]
[1733677168897,0.509124,99901.0,99900.0,0.00012296]
[1733677172509,0.327798,99901.0,99900.0,0.00012296]
[1733677172699,0.327798,99901.0,99900.0,0.04514696]
[1733677172700,0.008,99901.0,99900.0,0.04514696]
[1733677172901,0.008,99901.0,99900.0,0.04827553]
[1733677173303,0.008,99901.0,99900.0,1.54827553]
[1733677173706,0.008,99901.0,99900.0,1.55839242]
[1733677173911,0.004,99901.0,99900.0,1.55839242]
[1733677174603,0.003,99901.0,99900.0,1.55839242]
[1733677175501,0.003,99901.0,99900.0,1.79808367]
[1733677175904,0.002,99901.0,99900.0,1.79808367]
[1733677176899,0.002,99901.0,99900.0,1.55839242]
[1733677177709,0.001,99901.0,99900.0,1.55839242]
[1733677178310,0.001,99901.0,99900.0,1.56339762]
[1733677178515,0.001,99901.0,99900.0,1.56439762]
[1733677179407,0.045022,99904.0,99900.0,1.52137362]
[1733677179608,0.045022,99904.0,99903.0,0.045023]
[1733677179914,0.045022,99904.0,99903.0,0.05315677]
[1733677183821,0.045022,99904.0,99903.0,0.41395677]
[1733677185118,0.047022,99904.0,99903.0,0.41395677]
[1733677185714,0.046022,99904.0,99903.0,0.41395677]
[1733677185930,0.047022,99904.0,99903.0,0.41395677]
[1733677187624,0.047022,99904.0,99903.0,0.405823]
[1733677187810,0.047022,99904.0,99903.0,0.00500524]
[1733677188122,0.047022,99904.0,99903.0,0.00813351]
[1733677189120,0.047022,99904.0,99903.0,0.00312827]
[1733677189917,0.045024,99901.0,99900.0,0.00012296]
[1733677190115,0.045024,99901.0,99900.0,0.00325158]
[1733677191225,0.405824,99901.0,99900.0,0.00325158]
[1733677191718,0.585298,99901.0,99900.0,0.00325158]
[1733677191919,0.405824,99901.0,99900.0,1.50325158]
[1733677192323,0.41589859,99901.0,99900.0,1.50325158]
[1733677192524,0.41989859,99901.0,99900.0,1.50325158]
[1733677192712,0.42189859,99901.0,99900.0,1.50325158]
[1733677192919,0.41789859,99901.0,99900.0,1.50012296]
[1733677193220,0.41789859,99901.0,99900.0,1.50325177]
[1733677193221,0.42289859,99901.0,99900.0,1.50325177]
[1733677193436,0.06309859,99901.0,99900.0,1.50012296]
[1733677194425,0.2425677,99901.0,99900.0,1.50012296]
[1733677195223,0.42389859,99901.0,99900.0,1.50012296]
[1733677201317,0.42389859,99901.0,99900.0,1.50325177]
[1733677201620,0.42389859,99901.0,99900.0,1.50325176]
[1733677203726,0.413824,99901.0,99900.0,1.50325176]
[1733677203931,0.008,99901.0,99900.0,1.54827576]
[1733677204124,0.008,99901.0,99900.0,1.55328145]
[1733677204722,0.005,99901.0,99900.0,1.55328145]
[1733677204921,0.007,99901.0,99900.0,1.55328145]
[1733677205117,0.002,99901.0,99900.0,1.55328145]
[1733677205423,0.047024,99901.0,99900.0,1.55328145]
[1733677205727,0.045024,99901.0,99900.0,1.55015265]
[1733677205933,0.045024,99901.0,99900.0,1.55328044]
[1733677206316,0.045024,99901.0,99900.0,1.55828566]
[1733677206517,0.045024,99901.0,99900.0,1.56141392]
[1733677206925,0.045024,99901.0,99900.0,1.92221392]
[1733677207337,0.3608,99917.0,99900.0,1.90958992]
[1733677207627,0.045016,99918.0,99913.0,0.17979134]
[1733677207836,0.045016,99918.0,99917.0,0.045016]
[1733677208022,0.045016,99918.0,99917.0,0.05314948]
[1733677208827,0.045016,99918.0,99917.0,0.2328901]
[1733677209032,0.045016,99918.0,99917.0,1.55314948]
[1733677209228,0.047016,99918.0,99917.0,1.55314948]
[1733677209735,0.050016,99918.0,99917.0,1.55314948]
[1733677210325,0.051016,99918.0,99917.0,1.55314948]
[1733677210531,0.051016,99918.0,99917.0,0.05314948]
[1733677211227,0.051016,99918.0,99917.0,0.00813348]
[1733677211428,0.051016,99918.0,99917.0,0.00312826]
[1733677211724,0.411816,99918.0,99917.0,0.00312826]
[1733677211924,0.3668,99918.0,99902.0,0.17974062]
[1733677212132,0.045024,99901.0,99900.0,0.01012296]
[1733677212329,0.045024,99901.0,99900.0,0.00012296]
[1733677212530,0.045024,99901.0,99900.0,0.0063802]
[1733677212833,0.22451347,99901.0,99900.0,0.0063802]
[1733677214534,0.17948947,99902.0,99900.0,0.0063802]
[1733677214738,0.3608,99907.0,99901.0,0.00312863]
[1733677214739,0.17948947,99907.0,99901.0,0.00312863]
[1733677214930,0.19458664,99903.0,99902.0,0.05315714]
[1733677215124,0.045023,99903.0,99902.0,0.05315714]
[1733677215525,0.045023,99903.0,99902.0,0.04815163]
[1733677215727,0.045023,99903.0,99902.0,0.045023]
[1733677215927,0.14956364,99905.0,99904.0,0.045022]
[1733677216129,0.14956364,99910.0,99904.0,0.00813321]
[1733677216431,0.14956364,99910.0,99901.0,0.0326]
[1733677216432,0.19458264,99913.0,99912.0,0.045019]
[1733677216635,0.19458264,99913.0,99912.0,1.545019]
[1733677216830,0.045019,99913.0,99912.0,1.54814725]
[1733677217629,0.045019,99913.0,99912.0,1.50312825]
[1733677217836,0.046019,99913.0,99912.0,1.50312825]
[1733677218236,0.046019,99913.0,99912.0,1.5]
[1733677218443,0.049019,99913.0,99912.0,1.5]
[1733677218748,0.04502,99910.0,99909.0,0.40582]
[1733677218935,0.04502,99910.0,99909.0,0.40894812]
[1733677219129,0.04502,99910.0,99909.0,1.90894812]
[1733677220239,0.04602,99910.0,99909.0,1.90894812]
[1733677220749,0.04602,99910.0,99909.0,2.08868874]
[1733677220750,0.04702,99910.0,99909.0,2.08868874]
[1733677221046,0.04602,99910.0,99909.0,2.08868874]
[1733677221240,0.04702,99910.0,99909.0,2.08868874]
[1733677221434,0.002,99910.0,99909.0,1.90894812]
[1733677221743,0.38124142,99927.0,99921.0,0.045015]
[1733677221744,0.045014,99922.0,99921.0,0.045015]
[1733677222045,8.941e-05,99930.0,99929.0,0.045011]
[1733677222641,8.941e-05,99930.0,99929.0,0.04813846]
[1733677223744,8.941e-05,99930.0,99929.0,1.54813846]
[1733677223945,0.00308941,99930.0,99929.0,1.54813846]
[1733677224337,0.01108941,99930.0,99929.0,1.50412746]
[1733677225841,0.01108941,99930.0,99929.0,1.50412751]
[1733677229252,0.01108941,99930.0,99929.0,1.50412746]
[1733677229450,0.16062822,99930.0,99929.0,1.50412746]
[1733677229954,0.01108941,99930.0,99929.0,1.50412746]
[1733677230448,0.01108941,99930.0,99929.0,1.54913846]
[1733677230655,0.01108941,99930.0,99929.0,1.546011]
[1733677231750,0.01108941,99930.0,99929.0,1.906811]
[1733677232056,0.01108941,99930.0,99929.0,2.00688154]
[1733677232349,0.01108941,99930.0,99929.0,2.01000877]
[1733677232554,0.01108941,99930.0,99929.0,2.00688154]
[1733677232754,0.01108941,99930.0,99929.0,2.01000866]
[1733677232943,0.10078242,99930.0,99929.0,2.01000866]
[1733677233250,0.00808941,99930.0,99929.0,2.01000866]
[1733677233448,0.00908941,99930.0,99929.0,2.01000866]
[1733677234050,0.00908941,99930.0,99929.0,2.00900866]
[1733677234051,0.00108941,99930.0,99929.0,2.00900866]
[1733677234353,0.00208941,99930.0,99929.0,2.00900866]
[1733677234853,0.00208941,99930.0,99929.0,2.01893129]
[1733677237643,0.00208941,99930.0,99929.0,2.37973129]
[1733677238045,0.00208941,99930.0,99929.0,2.55901354]
[1733677238648,0.00108941,99930.0,99929.0,2.56401672]
[1733677238849,0.00108941,99930.0,99929.0,2.56701672]
[1733677239055,8.941e-05,99930.0,99929.0,2.56801672]
[1733677239248,8.941e-05,99930.0,99929.0,2.38873447]
[1733677241461,0.045001,99952.0,99929.0,2.38873447]
[1733677241650,0.045001,99952.0,99951.0,0.045001]
[1733677242958,0.09363624,99952.0,99951.0,0.045001]
[1733677243263,0.09963624,99952.0,99951.0,0.045001]
[1733677243761,0.09963624,99952.0,99951.0,1.545001]
[1733677244459,0.10163624,99952.0,99951.0,1.545001]
[1733677245056,0.047001,99952.0,99951.0,1.545001]
[1733677245260,0.049001,99952.0,99951.0,1.545001]
[1733677245559,0.09563624,99952.0,99951.0,1.545001]
[1733677245970,0.09763624,99952.0,99951.0,1.545001]
[1733677246956,0.09563624,99952.0,99951.0,1.545001]
[1733677247259,0.047001,99952.0,99942.0,0.045005]
[1733677247564,0.045005,99943.0,99942.0,0.045005]
[1733677248058,0.045007,99939.0,99938.0,1.545687]
[1733677248261,0.045007,99939.0,99938.0,1.5]
[1733677248262,0.09364224,99939.0,99938.0,1.5]
[1733677248452,0.04501,99933.0,99932.0,0.04501]
[1733677248856,0.04501,99933.0,99932.0,1.54501]
[1733677249563,0.09365338,99933.0,99932.0,1.54801]
[1733677249765,0.09365333,99933.0,99932.0,1.54801]
[1733677250067,0.16467197,99933.0,99932.0,1.504]
[1733677250253,0.04501,99933.0,99932.0,1.504]
[1733677251261,0.04501,99933.0,99932.0,1.501]
[1733677251561,0.04501,99933.0,99932.0,1.502]
[1733677253963,0.04501,99933.0,99932.0,1.50512772]
[1733677256665,0.04501,99933.0,99932.0,1.502]
[1733677256967,0.04501,99933.0,99932.0,0.002]
[1733677256968,0.05501,99933.0,99932.0,0.002]
[1733677257160,0.045015,99921.0,99920.0,0.01]
[1733677257358,0.045015,99921.0,99912.0,0.04652017]
[1733677257359,0.045018,99914.0,99912.0,0.04652017]
[1733677257566,0.045018,99914.0,99913.0,1.50312809]
[1733677258663,0.045018,99914.0,99913.0,1.5]
[1733677258867,0.045018,99914.0,99913.0,1.50312818]
[1733677259168,0.045018,99914.0,99913.0,1.5]
[1733677259367,0.045018,99914.0,99913.0,1.504]
[1733677259767,0.055177,99914.0,99913.0,1.513]
[1733677260575,0.055177,99914.0,99913.0,1.51612818]
[1733677260779,0.055177,99914.0,99913.0,1.513]
[1733677262074,0.045018,99914.0,99913.0,1.513]
[1733677262673,0.09615586,99930.0,99913.0,1.513]
[1733677262674,0.17925024,99916.0,99915.0,0.045017]
[1733677262863,0.22426524,99921.0,99913.0,0.3738]
[1733677263060,0.11951038,99914.0,99913.0,0.418818]
[1733677263265,0.11951038,99914.0,99913.0,1.918818]
[1733677263675,0.11951038,99917.0,99913.0,1.8679278]
[1733677263975,0.17925024,99929.0,99919.0,0.045016]
[1733677263976,0.11951038,99920.0,99919.0,0.045016]
[1733677264162,0.11951038,99921.0,99919.0,0.045016]
[1733677264572,0.11951038,99921.0,99920.0,1.5]
[1733677264772,0.11951038,99922.0,99921.0,0.045015]
[1733677265072,0.04501,99932.0,99931.0,0.04501]
[1733677266576,0.04501,99932.0,99931.0,0.04701]
[1733677267069,0.04501,99932.0,99931.0,0.04801]
[1733677267774,0.04501,99932.0,99931.0,0.05113747]
[1733677268568,0.40581,99932.0,99931.0,0.00612747]
[1733677268768,0.40581,99932.0,99931.0,0.003]
[1733677269575,0.52532038,99932.0,99931.0,0.003]
[1733677269780,0.40581,99932.0,99931.0,0.003]
[1733677272484,0.3608,99932.0,99931.0,0.04801]
[1733677272681,0.3608,99932.0,99931.0,0.05113765]
[1733677274773,0.3608,99932.0,99931.0,0.04801]
[1733677274979,0.3608,99932.0,99931.0,0.05113753]
[1733677275181,0.045008,99935.0,99933.0,0.045009]
[1733677275379,0.045008,99935.0,99934.0,0.00312753]
[1733677275579,0.08974988,99936.0,99934.0,0.36392753]
[1733677275781,0.08974988,99940.0,99935.0,0.05313941]
[1733677275980,0.08974988,99950.0,99948.0,0.045002]
[1733677276178,0.11955603,99955.0,99952.0,0.045]
[1733677276179,0.16455503,99955.0,99952.0,0.045]
[1733677276378,0.11955603,99955.0,99953.0,0.00312753]
[1733677276579,0.02043416,99959.0,99953.0,0.044999]
[1733677276580,0.045,99954.0,99953.0,0.044999]
[1733677276889,0.13475948,99954.0,99953.0,0.04812588]
[1733677277089,0.045,99954.0,99953.0,0.04812588]
[1733677278382,0.045,99954.0,99953.0,0.04812582]
[1733677278689,0.14072861,99954.0,99953.0,0.04912582]
[1733677278890,0.14372861,99954.0,99953.0,0.04912582]
[1733677279084,0.054,99954.0,99953.0,0.04912582]
[1733677279388,0.14370939,99954.0,99953.0,0.04912582]
[1733677279981,0.20631871,99954.0,99953.0,0.04912582]